[Event "Arona Festival 2024"]
[Site "Arona Tenerife"]
[Date "2024.06.24"]
[Round "5.5"]
[White "Kazakouski, Valery"]
[Black "Ritviz, Parab"]
[Result "1-0"]
[ECO "A27"]
[WhiteElo "2603"]
[BlackElo "2334"]
[Annotator "TA"]
[PlyCount "111"]
[EventDate "2024.06.20"]
[EventType "swiss"]
[EventCountry "ESP"]
[SourceTitle "playchess.com"]
[Source "ChessBase"]
[SourceQuality "1"]
[TimeControl "5400+30"]

{[%evp 14,111,47,37,39,42,20,27,26,22,29,41,36,27,33,22,17,25,14,16,33,36,42,22,25,20,19,18,24,22,5,0,33,41,36,35,32,32,33,35,37,27,25,25,25,25,39,39,39,29,44,1,25,0,25,25,39,18,18,18,52,18,52,50,54,47,68,57,139,139,170,177,191,173,176,187,155,138,315,313,464,444,720,662,29977,29978,29977,29979,29979,29980,29980,29981,29981,29982,29982,29983,29984,29985,29985,29985]} 1. c4 {[%emt 1:31:00]} e5 {[%emt 0:08:17]} 2. Nc3 {[%emt 0:00:00]} Nc6 {[%emt 0:00:26]} 3. Nf3 {[%emt 0:00:00]} f5 {[%emt 0:03:19]} 4. g3 {[%emt 0:00:00]} Nf6 {[%emt 0:02:08]} 5. d4 {[%emt 0:00:00]} e4 {[%emt 0:05:02]} 6. Nh4 {[%emt 0:00:00] A27: English Opening: Three Knights Variation.} Bb4 {[%emt 0:18:27]} 7. Nxf5 {[%emt 0:00:00]} d5 {[%emt 0:01:16]} 8. Ne3 $1 {[%emt 0:00:00]} (8. Nxg7+ Kf7 9. Bh6 dxc4 $17) 8... dxc4 {[%emt 0:07:40]} 9. d5 {[%emt 0:00:00]} (9. Nxc4 Qxd4 10. Ne3 Qxd1+ (10... Bxc3+ 11. bxc3 Qxc3+ 12. Bd2 $15) 11. Nexd1 Nd4 $17) 9... Bxc3+ {[%emt 0:00:12]} 10. bxc3 {[%emt 0:00:00]} Ne7 {[%emt 0:00:24]} 11. Qa4+ {[%emt 0:00:00]} Kf7 {[%emt 0:06:20]} 12. Qxc4 {[%emt 0:00:00]} Nexd5 {[%emt 0:01:22]} 13. Nxd5 Qxd5 {[%emt 0:00:10]} 14. Qxc7+ {[%emt 0:00:00]} Bd7 {[%emt 0:00:07]} 15. Bg2 {[%emt 0:07:00]} Rhc8 $146 {[%emt 0:06:27]} ({Predecessor:} 15... g5 16. c4 Qd4 17. Rb1 Rhc8 18. Qa5 Rc5 19. Qa3 Qxc4 20. O-O b6 21. f3 Ra5 {1-0 Matlakov,M (2683)-Wen,Y (2585) CHN-chT China 2018 (18.3)}) 16. Qf4 {[%emt 0:00:00]} Rxc3 {[%emt 0:02:23]} 17. Bb2 {[%emt 0:00:00]} g5 {[%emt 0:04:55]} 18. Qd2 {[%emt 0:00:00]} Qxd2+ {[%emt 0:01:08]} 19. Kxd2 {[%emt 0:00:00]} Rc4 {[%emt 0:00:07]} 20. Rhc1 {[%emt 0:00:00]} Rac8 {[%emt 0:00:52]} 21. Rxc4 {[%emt 0:00:00]} Rxc4 {[%emt 0:00:08]} 22. e3 {[%emt 0:00:00]} Ng4 {[%emt 0:19:22]} 23. Bd4 {[%emt 0:00:00]} Bc6 {[%emt 0:00:34]} (23... Nxf2 $2 {is the wrong capture.} 24. Rf1 $18 (24. Bxa7 Ra4 $11)) 24. h3 $1 {[%emt 0:00:00]} Nh2 {[%emt 0:00:22]} (24... Nxf2 $2 {too greedy.} 25. Rf1 $18 (25. Bxa7 Ra4 $11)) 25. Bxa7 {[%emt 0:00:00]} Nf3+ {[%emt 0:00:55]} 26. Bxf3 {[%emt 0:00:00]} exf3 {[%emt 0:00:03]} 27. Bd4 {[%emt 0:00:00]} Be4 {[%emt 0:01:22]} 28. Bc3 {[%emt 0:00:00]} Rc6 {[%emt 0:01:09]} 29. a3 {[%emt 0:00:00]} Rh6 {[%emt 0:01:08]} 30. Rh1 {[%emt 0:00:00]} Rd6+ {[%emt 0:05:06]} 31. Bd4 {[%emt 0:00:00]} Rc6 {[%emt 0:00:25]} 32. Rd1 {[%emt 0:00:00]} h5 {[%emt 0:01:56]} 33. g4 {[%emt 0:00:00]} h4 {[%emt 0:02:46]} 34. Ke1 {[%emt 0:00:06]} Ke6 {[%emt 0:00:38]} 35. a4 {[%emt 0:03:19]} Rc4 {[%emt 0:00:30]} 36. a5 {[%emt 0:00:18]} Rb4 {[%emt 0:00:32]} 37. Bb6 {[%emt 0:07:17]} Kf7 {[%emt 0:00:21]} 38. Bd8 Rb5 {[%emt 0:01:11]} 39. Rd4 {[%emt 0:00:00]} Bc6 {[%emt 0:00:00]} 40. e4 {[%emt 0:01:30]} Re5 {[%emt 0:00:27]} (40... Ke8 $14) 41. Kd2 $16 {[%emt 0:00:00]} Bxe4 {[%emt 0:00:31]} 42. Bxg5 $1 {[%emt 0:00:00]} Bc6 {[%emt 0:00:30]} 43. Bxh4 {[%emt 0:00:00]} Rxa5 {[%emt 0:00:12]} 44. Ke3 {[%emt 0:00:00]} Ra2 {[%emt 0:00:48]} 45. Bg3 {[%emt 0:00:00]} Rc2 $2 {[%emt 0:00:29]} (45... b5 $16 {was necessary.} 46. Rd6 Rc2) 46. h4 $18 {[%emt 0:00:25]} b5 {[%emt 0:00:27]} (46... Rc3+ {was worth a try.} 47. Kf4 b5) 47. h5 $18 {[%emt 0:00:30]} Rc3+ {[%emt 0:00:34]} (47... Be8 $142 48. g5 (48. Kxf3 Bc6+ 49. Ke3 Rc5 $18) 48... Rc5) 48. Kf4 $18 {[%emt 0:01:28]} Rc4 {[%emt 0:00:05]} 49. Rxc4 bxc4 {[%emt 0:00:01]} 50. g5 {[%emt 0:01:12]} c3 {[%emt 0:01:04] [#]} 51. g6+ $1 {[%emt 0:00:23]} Kf6 {[%emt 0:00:20] [#]} 52. Bh4+ $1 {[%emt 0:00:42]} Ke6 {[%emt 0:00:34]} 53. Bg5 {[%emt 0:00:16]} c2 {[%emt 0:00:06]} 54. Kg4 {[%emt 0:00:07]} Be4 {[%emt 0:00:32]} 55. Bc1 {[%emt 0:00:07]} Kf6 {[%emt 0:01:05]} 56. Bb2+ {[%emt 0:00:05]} 1-0

[Event "Arona Festival 2024"]
[Site "Arona Tenerife"]
[Date "2024.06.24"]
[Round "5.6"]
[White "Prraneeth Vuppala"]
[Black "Gupta, Abhijeet"]
[Result "0-1"]
[ECO "B92"]
[WhiteElo "2436"]
[BlackElo "2589"]
[Annotator "TA"]
[PlyCount "59"]
[EventDate "2024.06.20"]
[EventType "swiss"]
[EventCountry "ESP"]
[SourceTitle "playchess.com"]
[Source "ChessBase"]
[SourceQuality "1"]
[TimeControl "5400+30"]

{[%evp 22,59,0,0,41,31,25,22,27,32,7,8,13,16,39,34,58,9,18,17,29,0,22,34,42,0,0,-45,8,0,0,0,0,-72,-40,-100,-101,-561,-563,-1116]} 1. e4 {[%emt 0:06:34]} c5 {[%emt 0:00:07]} 2. Nf3 {[%emt 0:00:38]} d6 {[%emt 0:00:07]} 3. d4 {[%emt 0:00:29]} cxd4 {[%emt 0:00:05]} 4. Nxd4 {[%emt 0:00:04]} Nf6 {[%emt 0:00:05]} 5. Nc3 {[%emt 0:00:05]} a6 {[%emt 0:00:04]} 6. Be2 {[%emt 0:00:22]} e5 {[%emt 0:00:10]} 7. Nb3 {[%emt 0:00:17]} Be7 {[%emt 0:00:08]} 8. Be3 {[%emt 0:00:16]} Be6 {[%emt 0:00:25]} 9. Nd5 {[%emt 0:00:46]} Nbd7 {[%emt 0:00:38]} 10. Qd3 {[%emt 0:00:29]} O-O {[%emt 0:01:02]} 11. O-O {[%emt 0:00:17]} Bxd5 {[%emt 0:02:17]} 12. exd5 {[%emt 0:00:05]} h5 {[%emt 0:00:48]} 13. a4 {[%emt 0:00:42]} Ng4 {[%emt 0:00:50]} 14. Bc1 {[%emt 0:00:10]} Bg5 {[%emt 0:02:07] The position is equal.} 15. h3 {[%emt 0:00:24]} Bxc1 {[%emt 0:01:10]} 16. Rfxc1 {[%emt 0:00:05]} Ngf6 {[%emt 0:00:06]} 17. a5 {[%emt 0:03:47]} g6 {[%emt 0:00:31]} 18. Ra3 {[%emt 0:03:36]} Re8 {[%emt 0:04:01]} 19. Bf1 {[%emt 0:09:31]} (19. c4 $14) 19... h4 {[%emt 0:02:18]} 20. Be2 {[%emt 0:04:31]} e4 {[%emt 0:04:50]} 21. Qd4 {[%emt 0:04:41]} Re5 {[%emt 0:02:52]} 22. c4 {[%emt 0:00:44]} Rc8 {[%emt 0:02:22][%cal Oe4e3]} 23. Re1 {[%emt 0:01:14]} e3 {[%emt 0:02:09]} 24. f3 {[%emt 0:18:55]} g5 {[%emt 0:00:59]} ({Black should play} 24... Nh5 $15) 25. Nc1 {[%emt 0:05:20][%cal Ob2b4]} Nh5 {[%emt 0:03:08]} 26. Nd3 {[%emt 0:06:09]} Re8 {[%emt 0:01:01]} 27. Bf1 {[%emt 0:13:59]} (27. Bd1 $11) 27... Ng3 $17 {[%emt 0:04:27]} 28. Nc1 {[%emt 0:03:00]} (28. Rxe3 $15 Rxe3 29. Qxe3 Rxc4 30. Nf2) 28... Ne5 {[%emt 0:02:31] Black is much more active. Excellent horsemanship.} 29. f4 $2 {[%emt 0:17:50][%mdl 8192] [#]} (29. Raxe3 $17 Nf5 (29... Qxa5 30. Bd3 $11) 30. Qd2) 29... Qf6 $1 $19 {[%emt 0:04:24][%cal Oe5f3] And now ...Nf3+! would win.} 30. Rd1 {Weighted Error Value: White=0.57/Black=0.09 (flawless) .  Loses game:     	White=1     	---        Mistake:       	White=3     	Black=1      Inaccurate:     	White=4     	---        OK:         	White=5     	Black=9      Best:        	---       	Black=2} (30. Qd1 gxf4) 0-1

[Event "Arona Festival 2024"]
[Site "Arona Tenerife"]
[Date "2024.06.24"]
[Round "5.7"]
[White "Gorshtein, Ido"]
[Black "Omelja, Artem"]
[Result "1-0"]
[ECO "D58"]
[WhiteElo "2563"]
[BlackElo "2435"]
[Annotator "TA"]
[PlyCount "81"]
[EventDate "2024.06.20"]
[EventType "swiss"]
[EventCountry "ESP"]
[SourceTitle "playchess.com"]
[Source "ChessBase"]
[SourceQuality "1"]
[TimeControl "5400+30"]

{[%evp 20,81,12,0,16,15,27,19,22,22,24,0,33,31,32,42,35,6,18,10,18,14,19,13,20,0,18,23,129,126,124,127,125,123,135,98,202,197,191,191,215,202,210,211,292,293,301,300,611,569,563,537,617,597,1033,1030,1019,1019,1044,941,884,965,872,843]} 1. d4 {[%emt 0:05:51]} d5 {[%emt 0:00:13]} 2. c4 {[%emt 0:00:03]} e6 {[%emt 0:00:06]} 3. Nc3 {[%emt 0:00:04]} Nf6 {[%emt 0:00:08]} 4. Bg5 {[%emt 0:00:14]} Be7 {[%emt 0:00:40]} 5. e3 {[%emt 0:00:09]} h6 {[%emt 0:00:23]} 6. Bh4 {[%emt 0:00:12]} O-O {[%emt 0:00:36]} 7. Nf3 {[%emt 0:00:06]} b6 {[%emt 0:01:03]} 8. Rc1 {[%emt 0:00:10]} Bb7 {[%emt 0:01:13]} 9. Bxf6 {[%emt 0:02:26]} Bxf6 {[%emt 0:00:09]} 10. cxd5 {[%emt 0:00:03]} exd5 {[%emt 0:00:47]} 11. Be2 {[%emt 0:00:31]} a6 {[%emt 0:10:14]} 12. O-O {[%emt 0:00:21]} Qd6 {[%emt 0:02:37]} 13. a3 {[%emt 0:09:38]} Nd7 {[%emt 0:03:27] The position is equal.} 14. b4 {[%emt 0:02:37][%cal Bb2b4,Bb4b5][%mdl 32]} Be7 {[%emt 0:03:52]} 15. Qb3 {[%emt 0:02:26]} Qe6 {[%emt 0:04:12]} 16. b5 {[%emt 0:06:25]} a5 {[%emt 0:03:40]} 17. a4 {[%emt 0:01:28]} Bd6 {[%emt 0:00:27]} 18. Rfd1 {[%emt 0:02:29]} Rad8 {[%emt 0:01:34]} 19. Bf1 {[%emt 0:00:35]} Rfe8 {[%emt 0:01:53]} 20. g3 {[%emt 0:00:36]} Nf6 {[%emt 0:01:07]} 21. Bg2 {[%emt 0:00:55]} Ne4 {[%emt 0:05:29]} 22. Rc2 {[%emt 0:05:01]} (22. Nxe4 {simplifies} dxe4 23. Qxe6 Rxe6 24. Nd2) 22... Re7 {[%emt 0:04:39]} 23. Rdc1 {[%emt 0:00:35]} f6 {[%emt 0:07:54] White leaves nothing to chance now.} (23... g6 $11 {remains equal.}) 24. Nxe4 $16 {[%emt 0:09:43]} dxe4 {[%emt 0:00:16]} 25. Qxe6+ {[%emt 0:00:03]} Rxe6 {[%emt 0:00:07]} 26. Nh4 {[%emt 0:00:07]} Bd5 {[%emt 0:06:36]} 27. Bh3 {[%emt 0:10:19][%cal Oh4f5]} Re7 {[%emt 0:08:36]} (27... Ree8 $16 {was called for.}) 28. Nf5 $18 {[%emt 0:00:23]} Rf7 {[%emt 0:00:16]} 29. Nxd6 {[%emt 0:02:52]} cxd6 {[%emt 0:00:16] [#]} 30. Bf5 $1 {[%emt 0:07:36]} Re7 {[%emt 0:02:04]} 31. h4 {[%emt 0:00:32][%cal Bh2h4,Bh4h5][%mdl 32]} Kf8 {[%emt 0:04:59]} 32. h5 {[%emt 0:00:50]} Bf7 {[%emt 0:02:28]} 33. g4 {[%emt 0:00:03]} d5 $2 {[%emt 0:00:40]} (33... Bb3 34. Rc6 Bxa4) 34. Kg2 {[%emt 0:02:32] White is clearly winning.} Rb7 {[%emt 0:01:15]} 35. Kg3 {[%emt 0:00:20]} Be8 {[%emt 0:00:40]} 36. Kf4 {[%emt 0:00:40]} Ke7 {[%emt 0:03:22]} 37. Rc7+ {[%emt 0:01:45]} Rxc7 {[%emt 0:00:06]} 38. Rxc7+ {[%emt 0:00:04]} Kf8 {[%emt 0:00:05]} 39. Rb7 {[%emt 0:00:12]} Rd6 {[%emt 0:00:09]} 40. Bg6 {[%emt 0:01:10] [#] Rb8 would now be deadly.} Bd7 {[%emt 0:01:14]} 41. Rb8+ {[%emt 0:00:09] Weighted Error Value: White=0.07 (flawless) /Black=0.37.  Mistake:       	---       	Black=3      Inaccurate:     	White=1     	Black=3      OK:         	White=9     	Black=6      Best:        	White=2     	Black=1} 1-0

[Event "Arona Festival 2024"]
[Site "Arona Tenerife"]
[Date "2024.06.24"]
[Round "5.8"]
[White "Socko, Bartosz"]
[Black "Dhulipalla Bala Chandra Prasad"]
[Result "1/2-1/2"]
[ECO "C45"]
[WhiteElo "2556"]
[BlackElo "2420"]
[Annotator "TA"]
[PlyCount "104"]
[EventDate "2024.06.20"]
[EventType "swiss"]
[EventCountry "ESP"]
[SourceTitle "playchess.com"]
[Source "ChessBase"]
[SourceQuality "1"]
[TimeControl "5400+30"]

{[%evp 35,104,0,0,7,19,23,20,23,23,12,12,8,10,8,25,18,27,28,24,24,31,23,29,0,0,0,7,0,0,0,66,62,82,0,0,0,0,-67,65,54,132,123,208,149,190,109,206,64,227,15,33,48,85,0,0,0,0,0,0,0,0,0,0,0,0,0,0,0,0,0,0]} 1. e4 {[%emt 0:00:50]} e5 {[%emt 0:04:51]} 2. Nf3 {[%emt 0:00:03]} Nc6 {[%emt 0:00:04]} 3. d4 {[%emt 0:00:05]} exd4 {[%emt 0:00:06]} 4. Nxd4 {[%emt 0:00:04]} Nf6 {[%emt 0:00:05]} 5. Nxc6 {[%emt 0:00:05]} bxc6 {[%emt 0:00:03]} 6. Bd3 {[%emt 0:00:10]} d5 {[%emt 0:00:09]} 7. exd5 {[%emt 0:00:06]} cxd5 {[%emt 0:00:04]} 8. O-O {[%emt 0:00:09]} Be7 {[%emt 0:00:07]} 9. c4 {[%emt 0:00:05]} d4 {[%emt 0:00:03] C45: Scotch Game.} 10. Nd2 {[%emt 0:02:46]} O-O {[%emt 0:00:44]} 11. Ne4 {[%emt 0:00:12]} Nxe4 {[%emt 0:02:27]} 12. Bxe4 {[%emt 0:00:08]} Rb8 {[%emt 0:00:06]} 13. Re1 $146 {[%emt 0:01:27]} ({Predecessor:} 13. Qd3 h6 14. b3 Bb7 15. Bxb7 Rxb7 16. Bd2 Bb4 17. Bxb4 Rxb4 18. Rfe1 a5 19. Re5 {½-½ Chigaev,M (2615)-Matlakov,M (2674) AI Cup Play In Match rapid 2023 (1.1)}) 13... Bb4 {[%emt 0:03:28]} 14. Bd2 {[%emt 0:03:33]} Bxd2 {[%emt 0:23:10]} 15. Qxd2 {[%emt 0:00:21]} Qd6 {[%emt 0:03:34]} 16. Qc2 {[%emt 0:02:10]} g6 {[%emt 0:02:24]} 17. c5 {[%emt 0:00:07]} Qf6 {[%emt 0:00:46]} 18. Rab1 {[%emt 0:03:30]} Rd8 {[%emt 0:06:11]} 19. b4 {[%emt 0:03:43]} Bf5 {[%emt 0:04:43]} 20. Bxf5 {[%emt 0:02:24]} Qxf5 {[%emt 0:00:07]} 21. Qxf5 {[%emt 0:00:07]} gxf5 {[%emt 0:00:04]} 22. Red1 {[%emt 0:02:49]} a5 {[%emt 0:06:32]} 23. a3 {[%emt 0:02:34]} axb4 {[%emt 0:00:58]} 24. axb4 {[%emt 0:03:12]} Kg7 {[%emt 0:04:33]} 25. Kf1 {[%emt 0:01:03]} Kf6 {[%emt 0:01:42]} 26. Ke2 {[%emt 0:01:26]} Ke5 {[%emt 0:05:27]} 27. b5 {[%emt 0:01:13]} Kd5 {[%emt 0:09:00]} 28. b6 {[%emt 0:05:37]} c6 {[%emt 0:06:56]} 29. Rdc1 {[%emt 0:00:44]} Ra8 {[%emt 0:00:48]} 30. Rb4 {[%emt 0:04:20]} Re8+ {[%emt 0:00:59]} 31. Kf3 {[%emt 0:03:01]} Ra3+ {[%emt 0:01:23]} 32. Kf4 {[%emt 0:00:06]} Rc3 {[%emt 0:00:33]} (32... Ra2 $11) 33. Ra1 $1 $14 {[%emt 0:02:36]} (33. Rxc3 $2 dxc3 34. Rb3 Kc4 $19 (34... Kxc5 35. Rxc3+ Kxb6 36. Rb3+ Ka5 37. Rb7 $11)) 33... Rc4 {[%emt 0:06:48]} (33... Kxc5 34. b7 Kxb4 35. Ra8 $18) 34. Rbb1 {[%emt 0:01:56]} (34. Rxc4 $16 Kxc4 35. Rc1+ (35. Kxf5 d3 $17) 35... Kb3 36. b7 (36. Kxf5 $2 d3 $19)) 34... d3+ $1 $11 {[%emt 0:00:25]} 35. Kxf5 {[%emt 0:01:41]} Rxc5 {[%emt 0:00:25]} (35... Kxc5 36. b7 Rc2 (36... Rb8 $2 37. Ra8 $18) 37. Ra8 (37. b8=B Rxf2+ 38. Bf4 Kd4 $16) (37. b8=Q Rxb8 38. Rxb8 Rxf2+ 39. Ke4 Rxg2 $18) (37. b8=R Rxf2+ 38. Kg4 Rxb8 $18) 37... Rxf2+ 38. Kg4 Rxg2+ 39. Kf3 $18) 36. Kf6 {[%emt 0:06:02]} ({White should play} 36. b7 $11 Kd6+ 37. Kf4) 36... Kd6 {[%emt 0:00:13]} (36... Rb5 $1 $15 37. Kxf7 (37. Rxb5+ cxb5 38. Ra7 Re6+ 39. Kg7 Rxb6 $19) 37... Rxb1 38. Rxb1 Rb8) 37. Rb3 $1 $14 {[%emt 0:02:24]} Rd5 {[%emt 0:01:01]} (37... Re6+ $14 38. Kg7 Rg5+ 39. Kf8 (39. Kxh7 $2 {too greedy.} Ke7 $19) (39. Kxf7 Rf5+ 40. Kg8 d2 $11) 39... Rb5 40. Rxd3+ Kc5) 38. Rd1 $1 $16 {[%emt 0:00:07]} ({Reject} 38. Kxf7 $6 Rd8 39. Rd1 Ke5 $11) 38... Kc5 {[%emt 0:04:06]} (38... d2 $16 {was necessary.}) 39. Rdxd3 $18 {[%emt 0:01:41]} ({Don't play} 39. Rbxd3 $6 Re2 $16) 39... Rxd3 {[%emt 0:00:09]} 40. Rxd3 {[%emt 0:00:04]} Kxb6 {[%emt 0:00:04] [#]} 41. Kxf7 {[%emt 0:00:54]} ({White should try} 41. f4 $1 $18) 41... Re2 $14 {[%emt 0:00:29] [#]} 42. Rf3 $2 {[%emt 0:00:04]} (42. f4 $1 $18 {[%cal Rf4f5]}) 42... c5 $11 {[%emt 0:00:36]} 43. g4 {[%emt 0:02:06]} c4 {[%emt 0:00:21]} 44. g5 {[%emt 0:09:15]} ({Better is} 44. h4 $16) 44... c3 $11 {[%emt 0:03:59]} 45. h4 {[%emt 0:09:51]} c2 {[%emt 0:00:04]} 46. Rc3 {[%emt 0:00:03]} Rxf2+ {[%emt 0:00:04]} 47. Kg7 {[%emt 0:00:05]} Rh2 {[%emt 0:00:38]} 48. Kxh7 {[%emt 0:00:07]} Rxh4+ {[%emt 0:00:04]} 49. Kg7 {[%emt 0:00:06]} (49. Kg6 $5 Rh2 $8 50. Kg7 $11) 49... Rh2 {[%emt 0:00:17]} 50. g6 {[%emt 0:00:05]} Kb5 {[%emt 0:00:06]} 51. Rc8 {[%emt 0:00:13]} Kb4 {[%emt 0:00:11]} 52. Kf7 {[%emt 0:00:09]} Rf2+ {[%emt 0:00:11]} 1/2-1/2

[Event "Arona Festival 2024"]
[Site "Arona Tenerife"]
[Date "2024.06.24"]
[Round "5.9"]
[White "Erdos, Viktor"]
[Black "Socko, Monika"]
[Result "1/2-1/2"]
[ECO "D38"]
[WhiteElo "2539"]
[BlackElo "2416"]
[Annotator "TA"]
[PlyCount "65"]
[EventDate "2024.06.20"]
[EventType "swiss"]
[EventCountry "ESP"]
[SourceTitle "playchess.com"]
[Source "ChessBase"]
[SourceQuality "1"]
[TimeControl "5400+30"]

{[%evp 12,65,31,26,27,6,20,36,33,25,47,48,60,61,66,41,102,64,78,86,85,74,74,81,163,151,170,153,149,165,146,127,181,139,200,189,166,177,210,220,235,213,210,220,218,125,128,130,118,56,106,64,89,34,21,0]} 1. d4 {[%emt 0:09:35]} e6 {[%emt 0:00:03]} 2. Nf3 {[%emt 0:00:11]} Nf6 {[%emt 0:00:32]} 3. c4 {[%emt 0:00:08]} d5 {[%emt 0:00:13]} 4. Nc3 {[%emt 0:00:24]} Bb4 {[%emt 0:01:18]} 5. Bg5 {[%emt 0:01:02]} O-O {[%emt 0:01:07]} 6. e3 {[%emt 0:01:19]} c5 {[%emt 0:03:27]} 7. cxd5 {[%emt 0:22:28]} exd5 {[%emt 0:01:05]} 8. Bd3 {[%emt 0:10:29]} c4 {[%emt 0:28:46]} 9. Bc2 {[%emt 0:01:03]} Nc6 {[%emt 0:00:24] White is slightly better.} 10. O-O {[%emt 0:01:31]} Bxc3 {[%emt 0:01:24]} 11. bxc3 {[%emt 0:00:09]} Re8 {[%emt 0:00:35] Prevents Ne5} 12. Nd2 {[%emt 0:01:52]} h6 {[%emt 0:01:28]} 13. Bh4 {[%emt 0:00:26][%cal Oe3e4]} Qd6 {[%emt 0:01:38]} (13... b5 $14) 14. Re1 {[%emt 0:03:38]} g5 {[%emt 0:06:03]} 15. Bg3 {[%emt 0:00:59]} Qa3 {[%emt 0:00:04]} 16. Rc1 {[%emt 0:08:12]} Bg4 {[%emt 0:13:28]} 17. f3 {[%emt 0:00:23]} Be6 {[%emt 0:00:06]} (17... Bh5 $16) 18. Bb1 $18 {[%emt 0:06:44]} b5 {[%emt 0:11:36]} 19. e4 {[%emt 0:04:39]} Qf8 {[%emt 0:01:52]} 20. Nf1 {[%emt 0:10:43]} Rad8 {[%emt 0:02:05]} 21. Bf2 {[%emt 0:01:54]} a5 {[%emt 0:02:23]} (21... Nh5 $16) 22. Ng3 {[%emt 0:00:37]} dxe4 {[%emt 0:03:00]} (22... b4 $16 {is a better defense.} 23. h3 Kh8) 23. fxe4 {[%emt 0:00:21]} Ne5 {[%emt 0:00:34]} 24. Qe2 {[%emt 0:02:31]} Bg4 {[%emt 0:01:53]} 25. Qf1 {[%emt 0:00:20]} Ng6 {[%emt 0:01:30]} 26. Be3 {[%emt 0:06:00]} Nh5 {[%emt 0:08:47] [#]} 27. Nxh5 {[%emt 0:00:26]} Bxh5 {[%emt 0:00:02] [#]} 28. a4 {[%emt 0:00:29]} bxa4 $16 {[%emt 0:04:24]} 29. Qxc4 {[%emt 0:00:08]} a3 {[%emt 0:00:03]} 30. Rf1 {[%emt 0:01:45]} (30. e5 $16) 30... Nh4 {[%emt 0:01:10]} ({Black should try} 30... Rb8 $14) 31. e5 {[%emt 0:00:30] Rf6 would now be deadly.} Rb8 $1 {[%emt 0:00:54]} 32. Bf2 {[%emt 0:03:54] Chess con chili.} (32. Be4 $16) 32... Rb2 $14 {[%emt 0:01:24]} 33. Bd3 {[%emt 0:00:35] Wards off Be2.   Weighted Error Value: White=0.19 (very precise) /Black=0.18 (very precise) .  Mistake:       	White=3     	Black=5      Inaccurate:     	White=2     	---        OK:         	White=10    	Black=7      Best:        	White=1     	Black=2      Strong:       	---       	Black=1} ({Worse is} 33. Bxh4 Be2 34. Qd5 (34. Bh7+ $2 Kxh7 35. Rxf7+ Kg6 $19) 34... Bxf1 (34... gxh4 35. Rf2 $16) 35. Rxf1 gxh4 $19) 1/2-1/2